[Event "FIDE U16 Olympiad_boards_1-80"]
[Site "Eindhoven, Netherlands"]
[Date "2023.08.14"]
[Round "2.13"]
[White "Gaal, Zsoka"]
[Black "Smeets, Kobe"]
[Result "1-0"]
[TimeControl "2700+10"]
[WhiteElo "2254"]
[BlackElo "2193"]

1. Nf3 {[%clk 00:45:18]} {[%emt 00:00:01]} d5 {[%clk 00:45:17]} {[%emt
00:00:04]} 2. g3 {[%clk 00:45:26]} {[%emt 00:00:01]} Nd7 {[%clk 00:45:26]}
{[%emt 00:00:02]} 3. d4 {[%clk 00:45:31]} {[%emt 00:00:05]} Nb6 {[%clk
00:45:34]} {[%emt 00:00:01]} 4. Nc3 {[%clk 00:45:33]} {[%emt 00:00:07]} Nf6
{[%clk 00:45:43]} {[%emt 00:00:02]} 5. Bg2 {[%clk 00:45:39]} {[%emt 00:00:04]}
Bf5 {[%clk 00:45:44]} {[%emt 00:00:09]} 6. a4 {[%clk 00:45:44]} {[%emt
00:00:06]} a5 {[%clk 00:45:52]} {[%emt 00:00:01]} 7. Nh4 {[%clk 00:45:47]}
{[%emt 00:00:07]} Bg4 {[%clk 00:45:40]} {[%emt 00:00:22]} 8. Qd3 {[%clk
00:40:54]} {[%emt 00:05:03]} e6 {[%clk 00:43:32]} {[%emt 00:02:18]} 9. e4
{[%clk 00:40:52]} {[%emt 00:00:12]} Be7 {[%clk 00:41:56]} {[%emt 00:01:46]} 10.
exd5 {[%clk 00:38:11]} {[%emt 00:02:52]} Nfxd5 {[%clk 00:39:25]} {[%emt
00:02:40]} 11. Nxd5 {[%clk 00:37:51]} {[%emt 00:00:31]} exd5 {[%clk 00:37:47]}
{[%emt 00:01:48]} 12. Nf5 {[%clk 00:37:53]} {[%emt 00:00:07]} O-O {[%clk
00:37:17]} {[%emt 00:00:40]} 13. O-O {[%clk 00:37:11]} {[%emt 00:00:52]} Bf6
{[%clk 00:36:13]} {[%emt 00:01:14]} 14. c3 {[%clk 00:36:29]} {[%emt 00:00:53]}
Qd7 {[%clk 00:32:30]} {[%emt 00:03:52]} 15. Ne3 {[%clk 00:36:36]} {[%emt
00:00:04]} Bh3 {[%clk 00:32:10]} {[%emt 00:00:29]} 16. Bxh3 {[%clk 00:30:38]}
{[%emt 00:06:07]} Qxh3 {[%clk 00:32:18]} {[%emt 00:00:02]} 17. Qb5 {[%clk
00:30:42]} {[%emt 00:00:07]} Rfd8 {[%clk 00:31:28]} {[%emt 00:01:00]} 18. Re1
{[%clk 00:29:52]} {[%emt 00:01:00]} h5 {[%clk 00:30:07]} {[%emt 00:01:31]} 19.
b3 {[%clk 00:27:11]} {[%emt 00:02:51]} g6 {[%clk 00:29:07]} {[%emt 00:01:09]}
20. Ng2 {[%clk 00:24:56]} {[%emt 00:02:25]} Qd7 {[%clk 00:26:21]} {[%emt
00:02:56]} 21. Qxd7 {[%clk 00:24:24]} {[%emt 00:00:42]} Nxd7 {[%clk 00:25:50]}
{[%emt 00:00:41]} 22. Nf4 {[%clk 00:24:00]} {[%emt 00:00:36]} c6 {[%clk
00:25:41]} {[%emt 00:00:19]} 23. h4 {[%clk 00:23:15]} {[%emt 00:00:54]} Re8
{[%clk 00:25:45]} {[%emt 00:00:06]} 24. Ba3 {[%clk 00:23:15]} {[%emt 00:00:10]}
Bg7 {[%clk 00:24:32]} {[%emt 00:01:23]} 25. Bd6 {[%clk 00:18:59]} {[%emt
00:04:26]} Bf8 {[%clk 00:21:00]} {[%emt 00:03:42]} 26. Bxf8 {[%clk 00:17:17]}
{[%emt 00:01:52]} Kxf8 {[%clk 00:21:07]} {[%emt 00:00:03]} 27. f3 {[%clk
00:17:20]} {[%emt 00:00:07]} Re7 {[%clk 00:17:14]} {[%emt 00:04:03]} 28. Kf2
{[%clk 00:17:15]} {[%emt 00:00:15]} Rae8 {[%clk 00:17:14]} {[%emt 00:00:10]} 29.
Rxe7 {[%clk 00:17:22]} {[%emt 00:00:03]} Rxe7 {[%clk 00:17:20]} {[%emt
00:00:04]} 30. Rb1 {[%clk 00:15:25]} {[%emt 00:02:07]} Nb6 {[%clk 00:14:08]}
{[%emt 00:03:22]} 31. Nd3 {[%clk 00:15:25]} {[%emt 00:00:10]} Ke8 {[%clk
00:13:49]} {[%emt 00:00:29]} 32. Nc5 {[%clk 00:13:31]} {[%emt 00:02:03]} Kd8
{[%clk 00:11:15]} {[%emt 00:02:45]} 33. g4 {[%clk 00:11:52]} {[%emt 00:01:50]}
hxg4 {[%clk 00:09:37]} {[%emt 00:01:47]} 34. fxg4 {[%clk 00:12:00]} {[%emt
00:00:02]} Kc7 {[%clk 00:08:51]} {[%emt 00:00:55]} 35. h5 {[%clk 00:08:22]}
{[%emt 00:03:49]} gxh5 {[%clk 00:06:44]} {[%emt 00:02:17]} 36. gxh5 {[%clk
00:08:30]} {[%emt 00:00:02]} Re8 {[%clk 00:06:07]} {[%emt 00:00:47]} 37. Re1
{[%clk 00:07:51]} {[%emt 00:00:50]} Rh8 {[%clk 00:02:25]} {[%emt 00:03:51]} 38.
Re7+ {[%clk 00:07:59]} {[%emt 00:00:02]} Kd8 {[%clk 00:02:34]} {[%emt
00:00:01]} 39. Rxb7 {[%clk 00:07:45]} {[%emt 00:00:24]} Nc8 {[%clk 00:02:04]}
{[%emt 00:00:40]} 40. Rxf7 {[%clk 00:07:52]} {[%emt 00:00:02]} Rxh5 {[%clk
00:02:04]} {[%emt 00:00:10]} 41. Ne6+ {[%clk 00:07:58]} {[%emt 00:00:05]} Ke8
{[%clk 00:01:48]} {[%emt 00:00:26]} 42. Rf8+ {[%clk 00:02:35]} {[%emt
00:05:33]} Kd7 {[%clk 00:01:16]} {[%emt 00:00:42]} 43. Nc5+ {[%clk 00:02:41]}
{[%emt 00:00:04]} Kc7 {[%clk 00:01:16]} {[%emt 00:00:09]} 44. Rf7+ {[%clk
00:02:42]} {[%emt 00:00:10]} Kb8 {[%clk 00:00:15]} {[%emt 00:01:11]} 45. Rb7+
{[%clk 00:00:58]} {[%emt 00:01:54]} Ka8 {[%clk 00:00:24]} 46. Rc7 {[%clk
00:01:01]} {[%emt 00:00:07]} Na7 {[%clk 00:00:33]} {[%emt 00:00:01]} 47. Ke3
{[%clk 00:00:36]} {[%emt 00:00:35]} Rh3+ {[%clk 00:00:27]} {[%emt 00:00:17]} 48.
Kf4 {[%clk 00:00:28]} {[%emt 00:00:18]} Rxc3 {[%clk 00:00:35]} {[%emt
00:00:01]} 49. Ke5 {[%clk 00:00:35]} {[%emt 00:00:03]} Kb8 {[%clk 00:00:23]}
{[%emt 00:00:22]} 50. Rb7+ {[%clk 00:00:44]} Ka8 {[%clk 00:00:29]} {[%emt
00:00:04]} 51. Rh7 {[%clk 00:00:34]} {[%emt 00:00:19]} Kb8 {[%clk 00:00:31]}
{[%emt 00:00:09]} 52. Kd6 {[%clk 00:00:27]} {[%emt 00:00:16]} Rg3 {[%clk
00:00:23]} {[%emt 00:00:19]} 53. Na6+ {[%clk 00:00:31]} {[%emt 00:00:06]} Ka8
{[%clk 00:00:29]} {[%emt 00:00:04]} 54. Rh8+ {[%clk 00:00:36]} {[%emt
00:00:05]} Kb7 {[%clk 00:00:34]} {[%emt 00:00:05]} 55. Nc5+ {[%clk 00:00:44]}
{[%emt 00:00:02]} 1-0

[Event "FIDE U16 Olympiad_boards_1-80"]
[Site "Eindhoven, Netherlands"]
[Date "2023.08.14"]
[Round "2.14"]
[White "Labruyere, Roger"]
[Black "Palczert, Matyas"]
[Result "0-1"]
[TimeControl "2700+10"]
[WhiteElo "2181"]
[BlackElo "2163"]

1. e4 {[%clk 00:45:19]} {[%emt 00:00:01]} c5 {[%clk 00:45:17]} {[%emt
00:00:02]} 2. Nf3 {[%clk 00:45:28]} {[%emt 00:00:02]} d6 {[%clk 00:45:25]}
{[%emt 00:00:02]} 3. Bb5+ {[%clk 00:45:36]} {[%emt 00:00:01]} Bd7 {[%clk
00:45:29]} {[%emt 00:00:06]} 4. Bxd7+ {[%clk 00:45:43]} {[%emt 00:00:03]} Qxd7
{[%clk 00:45:37]} {[%emt 00:00:03]} 5. c4 {[%clk 00:45:51]} {[%emt 00:00:02]}
e5 {[%clk 00:45:33]} {[%emt 00:00:12]} 6. Nc3 {[%clk 00:45:39]} {[%emt
00:00:24]} g6 {[%clk 00:44:31]} {[%emt 00:01:12]} 7. d3 {[%clk 00:45:34]}
{[%emt 00:00:15]} Bg7 {[%clk 00:44:14]} {[%emt 00:00:26]} 8. O-O {[%clk
00:45:24]} {[%emt 00:00:21]} Ne7 {[%clk 00:44:07]} {[%emt 00:00:17]} 9. Bg5
{[%clk 00:44:59]} {[%emt 00:00:34]} Nbc6 {[%clk 00:43:40]} {[%emt 00:00:38]} 10.
Bxe7 {[%clk 00:45:07]} {[%emt 00:00:03]} Nxe7 {[%clk 00:43:09]} {[%emt
00:00:40]} 11. Ne1 {[%clk 00:45:15]} {[%emt 00:00:01]} O-O {[%clk 00:42:46]}
{[%emt 00:00:34]} 12. Nc2 {[%clk 00:45:22]} {[%emt 00:00:03]} f5 {[%clk
00:41:23]} {[%emt 00:01:33]} 13. f3 {[%clk 00:41:45]} {[%emt 00:03:47]} Rab8
{[%clk 00:36:23]} {[%emt 00:05:10]} 14. Ne3 {[%clk 00:41:49]} {[%emt 00:00:06]}
a6 {[%clk 00:33:27]} {[%emt 00:03:06]} 15. Ned5 {[%clk 00:41:55]} {[%emt
00:00:04]} Nc6 {[%clk 00:32:09]} {[%emt 00:01:27]} 16. Qa4 {[%clk 00:34:07]}
{[%emt 00:07:58]} Kh8 {[%clk 00:25:19]} {[%emt 00:07:01]} 17. a3 {[%clk
00:28:47]} {[%emt 00:05:30]} f4 {[%clk 00:23:27]} {[%emt 00:02:02]} 18. b4
{[%clk 00:27:05]} {[%emt 00:01:52]} g5 {[%clk 00:22:56]} {[%emt 00:00:42]} 19.
h3 {[%clk 00:27:02]} {[%emt 00:00:13]} h5 {[%clk 00:22:01]} {[%emt 00:01:03]}
20. Ne2 {[%clk 00:24:48]} {[%emt 00:02:24]} g4 {[%clk 00:19:45]} {[%emt
00:02:27]} 21. hxg4 {[%clk 00:24:36]} {[%emt 00:00:22]} hxg4 {[%clk 00:19:50]}
{[%emt 00:00:05]} 22. Kf2 {[%clk 00:24:14]} {[%emt 00:00:31]} g3+ {[%clk
00:18:49]} {[%emt 00:01:12]} 23. Ke1 {[%clk 00:24:18]} {[%emt 00:00:06]} Bf6
{[%clk 00:16:24]} {[%emt 00:02:35]} 24. b5 {[%clk 00:22:31]} {[%emt 00:01:57]}
Nd8 {[%clk 00:15:15]} {[%emt 00:01:18]} 25. Kd2 {[%clk 00:22:07]} {[%emt
00:00:35]} Ne6 {[%clk 00:14:25]} {[%emt 00:01:00]} 26. Rab1 {[%clk 00:21:15]}
{[%emt 00:01:02]} Kg7 {[%clk 00:11:47]} {[%emt 00:02:47]} 27. Qb3 {[%clk
00:16:52]} {[%emt 00:04:34]} a5 {[%clk 00:10:27]} {[%emt 00:01:30]} 28. b6
{[%clk 00:15:59]} {[%emt 00:01:02]} Ra8 {[%clk 00:07:58]} {[%emt 00:02:39]} 29.
Qc3 {[%clk 00:15:00]} {[%emt 00:01:10]} Rh8 {[%clk 00:07:16]} {[%emt 00:00:52]}
30. Rh1 {[%clk 00:15:02]} {[%emt 00:00:08]} a4 {[%clk 00:06:57]} {[%emt
00:00:28]} 31. Qc2 {[%clk 00:14:04]} {[%emt 00:01:09]} Bg5 {[%clk 00:06:10]}
{[%emt 00:00:57]} 32. Ndc3 {[%clk 00:13:10]} {[%emt 00:01:04]} Rxh1 {[%clk
00:05:11]} {[%emt 00:01:09]} 33. Rxh1 {[%clk 00:13:18]} {[%emt 00:00:02]} Bd8
{[%clk 00:04:59]} {[%emt 00:00:21]} 34. Nd5 {[%clk 00:13:27]} {[%emt 00:00:02]}
Ra6 {[%clk 00:04:28]} {[%emt 00:00:41]} 35. Qb2 {[%clk 00:13:31]} {[%emt
00:00:05]} Qc6 {[%clk 00:03:02]} {[%emt 00:01:36]} 36. Rb1 {[%clk 00:13:09]}
{[%emt 00:00:33]} Kf7 {[%clk 00:02:02]} {[%emt 00:01:10]} 37. Qb5 {[%clk
00:10:07]} {[%emt 00:03:12]} Qxb5 {[%clk 00:01:30]} {[%emt 00:00:41]} 38. Rxb5
{[%clk 00:10:14]} {[%emt 00:00:03]} Ke8 {[%clk 00:00:41]} {[%emt 00:01:00]} 39.
Nec3 {[%clk 00:06:18]} {[%emt 00:04:05]} Kd7 {[%clk 00:00:40]} {[%emt
00:00:11]} 40. Kd1 {[%clk 00:03:21]} {[%emt 00:03:07]} Kc6 {[%clk 00:00:31]}
{[%emt 00:00:19]} 41. Rb2 {[%clk 00:03:04]} {[%emt 00:00:28]} Nd4 {[%clk
00:00:18]} {[%emt 00:00:23]} 42. Rb1 {[%clk 00:01:38]} {[%emt 00:01:36]} Bxb6
{[%clk 00:00:15]} {[%emt 00:00:12]} 43. Ne7+ {[%clk 00:01:46]} {[%emt
00:00:03]} Kd7 {[%clk 00:00:20]} {[%emt 00:00:05]} 44. Ncd5 {[%clk 00:01:32]}
{[%emt 00:00:23]} Nb3 {[%clk 00:00:17]} {[%emt 00:00:14]} 45. Kc2 {[%clk
00:01:18]} {[%emt 00:00:24]} Bd8 {[%clk 00:00:23]} {[%emt 00:00:04]} 46. Nf5
{[%emt 00:00:26]} Nd4+ {[%clk 00:00:13]} {[%emt 00:00:02]} 47. Nxd4 {[%clk
00:01:28]} {[%emt 00:00:01]} cxd4 {[%clk 00:00:22]} {[%emt 00:00:02]} 48. Rxb7+
{[%clk 00:01:36]} {[%emt 00:00:02]} Kc8 {[%clk 00:00:27]} {[%emt 00:00:05]} 49.
Rh7 {[%clk 00:01:25]} {[%emt 00:00:20]} Kb8 {[%emt 00:00:43]} 50. Nb4 {[%clk
00:01:02]} {[%emt 00:00:02]} Rb6 {[%clk 00:00:34]} {[%emt 00:00:02]} 51. Rh8
{[%clk 00:00:48]} {[%emt 00:00:23]} Kc8 {[%clk 00:00:43]} 52. Rh7 {[%clk
00:00:44]} {[%emt 00:00:15]} Rb7 {[%clk 00:00:46]} {[%emt 00:00:07]} 53. Rh5
{[%clk 00:00:37]} {[%emt 00:00:17]} Ba5 {[%clk 00:00:36]} {[%emt 00:00:18]} 54.
Rh8+ {[%clk 00:00:27]} {[%emt 00:00:22]} Kd7 {[%clk 00:00:24]} {[%emt
00:00:22]} 55. Rh7+ {[%clk 00:00:20]} {[%emt 00:00:17]} Kc8 {[%clk 00:00:32]}
{[%emt 00:00:02]} 56. Rxb7 {[%clk 00:00:28]} {[%emt 00:00:11]} Kxb7 {[%clk
00:00:41]} 57. Nd5 {[%clk 00:00:30]} Kc6 {[%clk 00:00:47]} {[%emt 00:00:03]} 58.
Ne7+ {[%clk 00:00:19]} {[%emt 00:00:22]} Kd7 {[%clk 00:00:54]} {[%emt
00:00:02]} 59. Ng6 {[%clk 00:00:25]} {[%emt 00:00:04]} Bd8 {[%clk 00:00:39]}
{[%emt 00:00:25]} 60. c5 {[%clk 00:00:16]} {[%emt 00:00:19]} Kc6 {[%clk
00:00:43]} {[%emt 00:00:07]} 61. Nf8 {[%clk 00:00:12]} {[%emt 00:00:14]} dxc5
{[%clk 00:00:44]} {[%emt 00:00:08]} 62. Ne6 {[%clk 00:00:21]} {[%emt 00:00:01]}
Be7 {[%clk 00:00:50]} {[%emt 00:00:05]} 63. Ng7 {[%clk 00:00:27]} {[%emt
00:00:04]} Kb5 {[%clk 00:00:49]} {[%emt 00:00:10]} 64. Ne6 {[%clk 00:00:20]}
{[%emt 00:00:16]} Kc6 {[%clk 00:00:35]} {[%emt 00:00:25]} 65. Kb2 {[%clk
00:00:18]} {[%emt 00:00:13]} Bf6 {[%clk 00:00:37]} {[%emt 00:00:08]} 66. Nf8
{[%clk 00:00:11]} {[%emt 00:00:16]} Kd6 {[%clk 00:00:41]} {[%emt 00:00:07]} 67.
Ng6 {[%clk 00:00:13]} {[%emt 00:00:07]} Ke6 {[%clk 00:00:42]} {[%emt 00:00:10]}
0-1

[Event "FIDE U16 Olympiad_boards_1-80"]
[Site "Eindhoven, Netherlands"]
[Date "2023.08.14"]
[Round "2.15"]
[White "Kolimar, Kristof Pal"]
[Black "Arnold, Rhys"]
[Result "1/2-1/2"]
[TimeControl "2700+10"]
[WhiteElo "2182"]
[BlackElo "1803"]

1. Nf3 {[%clk 00:45:18]} {[%emt 00:00:02]} d5 {[%clk 00:45:20]} 2. d4 {[%clk
00:45:27]} {[%emt 00:00:01]} e6 {[%clk 00:45:25]} {[%emt 00:00:05]} 3. g3
{[%clk 00:45:32]} {[%emt 00:00:05]} Nf6 {[%clk 00:44:10]} {[%emt 00:01:25]} 4.
Bg2 {[%clk 00:45:41]} {[%emt 00:00:01]} b5 {[%clk 00:44:00]} {[%emt 00:00:20]}
5. O-O {[%clk 00:45:23]} {[%emt 00:00:27]} Bd6 {[%clk 00:43:42]} {[%emt
00:00:28]} 6. a4 {[%clk 00:43:02]} {[%emt 00:02:31]} b4 {[%clk 00:43:41]}
{[%emt 00:00:11]} 7. Ne5 {[%clk 00:43:02]} {[%emt 00:00:10]} Bb7 {[%clk
00:43:12]} {[%emt 00:00:39]} 8. c4 {[%clk 00:41:25]} {[%emt 00:01:47]} bxc3
{[%clk 00:43:13]} {[%emt 00:00:10]} 9. Nxc3 {[%clk 00:41:33]} {[%emt 00:00:02]}
Nbd7 {[%clk 00:41:16]} {[%emt 00:02:06]} 10. Nc4 {[%clk 00:35:28]} {[%emt
00:06:15]} Bb4 {[%clk 00:39:03]} {[%emt 00:02:24]} 11. Na2 {[%clk 00:30:03]}
{[%emt 00:05:35]} Be7 {[%clk 00:37:49]} {[%emt 00:01:24]} 12. Na5 {[%clk
00:29:58]} {[%emt 00:00:15]} Rb8 {[%clk 00:37:50]} {[%emt 00:00:09]} 13. Nxb7
{[%clk 00:28:35]} {[%emt 00:01:32]} Rxb7 {[%clk 00:37:59]} 14. Qc2 {[%clk
00:28:29]} {[%emt 00:00:16]} Qb8 {[%clk 00:37:18]} {[%emt 00:00:51]} 15. Rb1
{[%clk 00:27:19]} {[%emt 00:01:21]} O-O {[%clk 00:37:11]} {[%emt 00:00:17]} 16.
b4 {[%clk 00:25:31]} {[%emt 00:01:58]} Nb6 {[%clk 00:35:35]} {[%emt 00:01:44]}
17. b5 {[%clk 00:24:51]} {[%emt 00:00:51]} Rd8 {[%clk 00:34:34]} {[%emt
00:01:11]} 18. Nb4 {[%clk 00:23:04]} {[%emt 00:01:58]} Bxb4 {[%clk 00:34:40]}
{[%emt 00:00:03]} 19. Rxb4 {[%clk 00:23:12]} {[%emt 00:00:03]} Nbd7 {[%clk
00:32:59]} {[%emt 00:01:51]} 20. Bf4 {[%clk 00:20:41]} {[%emt 00:02:41]} a6
{[%clk 00:32:09]} {[%emt 00:01:00]} 21. Rfb1 {[%clk 00:19:01]} {[%emt
00:01:50]} Rc8 {[%clk 00:29:58]} {[%emt 00:02:21]} 22. Qd3 {[%clk 00:15:25]}
{[%emt 00:03:45]} axb5 {[%clk 00:29:47]} {[%emt 00:00:21]} 23. Rxb5 {[%clk
00:13:18]} {[%emt 00:02:18]} Rxb5 {[%clk 00:29:52]} {[%emt 00:00:04]} 24. axb5
{[%clk 00:13:02]} {[%emt 00:00:26]} Qb6 {[%clk 00:29:07]} {[%emt 00:00:55]} 25.
Rc1 {[%clk 00:12:19]} {[%emt 00:00:53]} c6 {[%clk 00:27:12]} {[%emt 00:02:04]}
26. bxc6 {[%clk 00:10:19]} {[%emt 00:02:11]} Rxc6 {[%clk 00:27:12]} {[%emt
00:00:09]} 1/2-1/2

[Event "FIDE U16 Olympiad_boards_1-80"]
[Site "Eindhoven, Netherlands"]
[Date "2023.08.14"]
[Round "2.16"]
[White "Gergin, Isafara"]
[Black "Giang, Tran Nam"]
[Result "0-1"]
[TimeControl "2700+10"]
[WhiteElo "1751"]
[BlackElo "2098"]

1. e4 {[%clk 00:45:19]} c5 {[%clk 00:45:18]} {[%emt 00:00:02]} 2. Nf3 {[%clk
00:45:26]} {[%emt 00:00:03]} Nf6 {[%clk 00:45:20]} {[%emt 00:00:08]} 3. Nc3
{[%clk 00:45:26]} {[%emt 00:00:10]} d5 {[%clk 00:45:29]} {[%emt 00:00:02]} 4.
exd5 {[%clk 00:45:00]} {[%emt 00:00:36]} Nxd5 {[%clk 00:45:37]} {[%emt
00:00:02]} 5. d4 {[%clk 00:44:09]} {[%emt 00:01:01]} Nxc3 {[%clk 00:44:55]}
{[%emt 00:00:51]} 6. bxc3 {[%clk 00:44:16]} {[%emt 00:00:03]} g6 {[%clk
00:44:24]} {[%emt 00:00:42]} 7. Bb5+ {[%clk 00:42:28]} {[%emt 00:01:58]} Bd7
{[%clk 00:44:04]} {[%emt 00:00:30]} 8. Bxd7+ {[%clk 00:42:13]} {[%emt
00:00:25]} Nxd7 {[%clk 00:44:08]} {[%emt 00:00:06]} 9. O-O {[%clk 00:41:59]}
{[%emt 00:00:24]} Bg7 {[%clk 00:44:01]} {[%emt 00:00:17]} 10. Be3 {[%clk
00:41:16]} {[%emt 00:00:53]} O-O {[%clk 00:43:46]} {[%emt 00:00:24]} 11. Qd2
{[%clk 00:41:12]} {[%emt 00:00:14]} Qa5 {[%clk 00:42:29]} {[%emt 00:01:27]} 12.
Bh6 {[%clk 00:37:18]} {[%emt 00:04:04]} Rfd8 {[%clk 00:41:04]} {[%emt
00:01:35]} 13. Bxg7 {[%clk 00:36:28]} {[%emt 00:01:00]} Kxg7 {[%clk 00:41:10]}
{[%emt 00:00:04]} 14. Qe3 {[%clk 00:34:15]} {[%emt 00:02:24]} e6 {[%clk
00:39:46]} {[%emt 00:01:34]} 15. Rfd1 {[%clk 00:31:58]} {[%emt 00:02:27]} cxd4
{[%clk 00:36:41]} {[%emt 00:03:14]} 16. cxd4 {[%clk 00:31:07]} {[%emt
00:01:02]} Rac8 {[%clk 00:36:21]} {[%emt 00:00:29]} 17. Qe4 {[%clk 00:27:15]}
{[%emt 00:04:03]} b6 {[%clk 00:34:08]} {[%emt 00:02:22]} 18. Qe2 {[%clk
00:20:24]} {[%emt 00:07:01]} Rc3 {[%clk 00:33:21]} {[%emt 00:00:56]} 19. Rd3
{[%clk 00:17:39]} {[%emt 00:02:57]} Rdc8 {[%clk 00:31:51]} {[%emt 00:01:39]} 20.
Rxc3 {[%clk 00:16:57]} {[%emt 00:00:52]} Qxc3 {[%clk 00:31:50]} {[%emt
00:00:11]} 21. Rc1 {[%clk 00:15:29]} {[%emt 00:01:39]} Qb2 {[%clk 00:30:41]}
{[%emt 00:01:18]} 22. Qd1 {[%clk 00:15:15]} {[%emt 00:00:24]} Qxa2 {[%clk
00:30:20]} {[%emt 00:00:31]} 23. c3 {[%clk 00:15:08]} {[%emt 00:00:17]} Qd5
{[%clk 00:27:04]} {[%emt 00:03:27]} 24. h3 {[%emt 00:01:19]} a5 {[%clk
00:26:27]} 25. Qa4 {[%clk 00:14:06]} {[%emt 00:00:49]} Rc4 {[%clk 00:25:57]}
{[%emt 00:00:41]} 26. Qa3 {[%clk 00:13:37]} {[%emt 00:00:38]} Nf6 {[%clk
00:24:32]} {[%emt 00:01:35]} 27. Ne5 {[%clk 00:12:41]} {[%emt 00:01:06]} Rc7
{[%clk 00:24:32]} {[%emt 00:00:09]} 28. Rb1 {[%clk 00:11:45]} {[%emt 00:01:07]}
Qe4 {[%clk 00:21:40]} {[%emt 00:03:02]} 29. Rc1 {[%clk 00:09:22]} {[%emt
00:02:33]} Nd5 {[%clk 00:20:34]} {[%emt 00:01:15]} 30. Nf3 {[%clk 00:07:24]}
{[%emt 00:02:09]} Nf4 {[%clk 00:18:57]} {[%emt 00:01:47]} 31. Re1 {[%clk
00:05:06]} {[%emt 00:02:29]} Qc6 {[%clk 00:18:54]} {[%emt 00:00:11]} 32. Re3
{[%clk 00:04:10]} {[%emt 00:01:07]} a4 {[%clk 00:17:09]} {[%emt 00:01:55]} 33.
Qb2 {[%clk 00:02:03]} {[%emt 00:02:17]} Ra7 {[%clk 00:14:33]} {[%emt 00:02:45]}
34. Qa3 {[%clk 00:01:52]} {[%emt 00:00:22]} Qb5 {[%clk 00:13:17]} {[%emt
00:01:26]} 35. Kh2 {[%emt 00:01:08]} Qf1 {[%clk 00:12:54]} {[%emt 00:00:32]} 36.
Nh4 {[%clk 00:00:41]} {[%emt 00:00:25]} Qxf2 {[%clk 00:12:48]} {[%emt
00:00:16]} 37. Rf3 {[%clk 00:00:34]} {[%emt 00:00:17]} Qxh4 {[%clk 00:12:49]}
{[%emt 00:00:09]} 0-1